Cogmind - Beta 11.1 --- EXPLORER MODE // 2022.05.25 @ 02:52:46 Player: Grimbling Result: Destroyed by Executioner with Helical Railgun Performance ------------- Evolutions (9) 4500 Regions Visited (27) 5400 Robots Destroyed (425) 2125 Value Destroyed (28516) 28516 Prototype IDs (30) 600 Alien Tech Used (0) 0 Bonus (9602) 9602 TOTAL SCORE: 50743 Bonus ------- High Alert Combat Kills 1932 Follower Combat Kills 1315 Entered Garrisons 1600 Used RIF Installer 4000 Aligned with FarCom 300 Destroyed MAIN.C Guards 500 Friendly Fire -45 Cogmind --------- Core Integrity 0/1600 Matter 11/300 Energy 83/100 System Corruption 17% Temperature Cool (0) Movement Core (50) Location -1/Command Parts ------- > --- POWER (2) -------- (None) > --- PROPULSION (4) --- (None) > --- UTILITY (16) ----- (None) > --- WEAPON (4) ------- (None) > --- INVENTORY (5) ---- Quantum Rifle Quantum Rifle Enhanced Nova Cannon Peak State ------------ > --- POWER ------------ Particle Reactor Light Quantum Reactor > --- PROPULSION ------- Biometal Heavy Treads Advanced Heavy Siege Treads > --- UTILITY ---------- Advanced Heat Sink Advanced Heat Sink Advanced Heat Sink Advanced Heat Sink Advanced Heat Sink Advanced Heat Sink Advanced Cooling System Advanced Cooling System Large Storage Unit Improved Energy Well Advanced Target Analyzer Advanced Weapon Cycler Heavy Armor Plating Relay Coupler [Demolisher] Relay Coupler [Hunter] > --- WEAPON ----------- Quantum Rifle Enhanced Nova Cannon Enhanced Nova Cannon Enhanced Nova Cannon > --- INVENTORY -------- Quantum Reactor Light Quantum Reactor Advanced Heavy Treads Advanced Heavy Treads Advanced Weapon Cycler Quantum Rifle Quantum Rifle Enhanced Nova Cannon Enhanced Nova Cannon Enhanced Nova Cannon Fusion Bomb Launcher Advanced Remote Datajack Field Lobotomy Kit [Rating: 181] Favorites ----------- Power Enhanced Fission Core Engine Reinforced Deuterium Engine Power Core Enhanced Fission Core Reactor Heavy Antimatter Reactor Propulsion Light Treads Treads Light Treads Leg Improved Aluminum Leg Utility Advanced Heat Sink Device Advanced Heat Sink Storage Large Storage Unit Processor Improved Target Analyzer Hackware System Shield Protection Hardened Medium Armor Plating Weapon Phase Gun Energy Gun Phase Gun Energy Cannon Enhanced Nova Cannon Launcher Rocket Launcher Special Weapon Field Lobotomy Kit Piercing Weapon Heavy Pick Special Melee Weapon Improved Datajack Build | -11 -10 -10 -9 -9 -9 -8 -8 -7 -7 -7 -7 -6 -6 -6 -6 -5 -5 -5 -4 -3 -3 -3 -3 -2 -2 -1 -1 ------- Run | Scr Mat Min Mat Min Exi Min Mat Fac Gar Fac Gar Fac Gar Fac Gar Fac Gar Fac Fac Res Gar Res Gar Res Gar Acc Com Slots Evolved 19 | . 1 . 2 . . . 2 2 . . . 2 . . . 2 . . 2 2 . . . 2 . 2 . Power 1 | . . . . . . . . . . . . . . . . 1 . . . . . . . . . . . Propulsion 2 | . . . 1 . . . 1 . . . . . . . . . . . . . . . . . . . . Utility 14 | . 1 . . . . . 1 2 . . . 1 . . . 1 . . 2 2 . . . 2 . 2 . Weapon 2 | . . . 1 . . . . . . . . 1 . . . . . . . . . . . . . . . Parts Attached 355 | 1 11 2 15 . 6 9 14 8 29 4 18 16 19 9 14 20 31 3 9 2 6 23 15 12 25 9 25 Power 35 | . . . 2 . . . 2 2 3 . 1 1 . 1 2 5 . . 1 . 2 5 . 1 2 1 4 Engine 8 | . . . 2 . . . 1 . 1 . . 1 . . 2 1 . . . . . . . . . . . Core 13 | . . . . . . . 1 2 2 . 1 . . 1 . 4 . . . . 2 . . . . . . Reactor 14 | . . . . . . . . . . . . . . . . . . . 1 . . 5 . 1 2 1 4 Propulsion 68 | . 7 . 6 . . 4 5 2 7 1 . 3 5 3 1 4 4 . 3 . . 4 . 1 2 1 5 Treads 43 | . . . . . . 1 . . 5 1 . 3 5 3 1 4 4 . 3 . . 4 . 1 2 1 5 Leg 25 | . 7 . 6 . . 3 5 2 2 . . . . . . . . . . . . . . . . . . Wheel . | . . . . . . . . . . . . . . . . . . . . . . . . . . . . Hover . | . . . . . . . . . . . . . . . . . . . . . . . . . . . . Flight . | . . . . . . . . . . . . . . . . . . . . . . . . . . . . Utility 118 | . 1 . 1 . 2 1 3 4 7 . 7 4 4 1 4 7 13 2 5 2 4 6 6 5 14 7 8 Device 77 | . . . 1 . 1 . 2 3 2 . 4 2 2 1 4 3 12 1 3 1 4 5 4 4 10 4 4 Storage 6 | . . . . . 1 . . . . . . . . . . 2 . . . . . . . . . 1 2 Processor 11 | . 1 . . . . . 1 . 2 . . 2 . . . 2 . . 1 . . . . . . 1 1 Hackware 11 | . . . . . . . . . 2 . 2 . 2 . . . . . . 1 . 1 1 . 2 . . Protection 13 | . . . . . . 1 . 1 1 . 1 . . . . . 1 1 1 . . . 1 1 2 1 1 Artifact . | . . . . . . . . . . . . . . . . . . . . . . . . . . . . Weapon 134 | 1 3 2 6 . 4 4 4 . 12 3 10 8 10 4 7 4 14 1 . . . 8 9 5 7 . 8 Energy Gun 71 | 1 3 1 6 . 1 4 1 . 4 1 3 5 5 . 4 4 9 1 . . . 6 7 1 4 . . Energy Cannon 34 | . . . . . 1 . 3 . 4 2 2 1 . 4 1 . 3 . . . . . . 4 3 . 6 Ballistic Gun . | . . . . . . . . . . . . . . . . . . . . . . . . . . . . Ballistic Cannon . | . . . . . . . . . . . . . . . . . . . . . . . . . . . . Launcher 8 | . . 1 . . . . . . . . 1 . 1 . 1 . 2 . . . . . 1 . . . 1 Special Weapon 8 | . . . . . 1 . . . . . . 1 2 . . . . . . . . 2 1 . . . 1 Impact Weapon . | . . . . . . . . . . . . . . . . . . . . . . . . . . . . Slashing Weapon . | . . . . . . . . . . . . . . . . . . . . . . . . . . . . Piercing Weapon 6 | . . . . . . . . . 2 . 2 . 1 . 1 . . . . . . . . . . . . Special Melee Weapon 7 | . . . . . 1 . . . 2 . 2 1 1 . . . . . . . . . . . . . . Unidentified Prototypes 9 | . . . . . 3 . . . . . . 1 . . . 2 . . . 1 . 2 . . . . . Parts Lost 68 | . . . 1 . . . 5 1 10 . 1 3 4 2 . 2 1 . . . 1 4 1 1 2 1 28 Power 9 | . . . 1 . . . 1 . 1 . . . . 1 . 2 . . . . . . . . . . 3 Propulsion 13 | . . . . . . . 2 . 3 . . 3 . 1 . . . . . . . . . . . . 4 Utility 32 | . . . . . . . . 1 4 . 1 . 1 . . . 1 . . . 1 4 . 1 2 1 15 Weapon 14 | . . . . . . . 2 . 2 . . . 3 . . . . . . . . . 1 . . . 6 Highest Loss Streak 19 | . . . 1 . . . 3 1 3 . 1 2 2 2 . 1 1 . . . 1 2 1 1 1 1 19 To Critical Strikes 2 | . . . . . . . . . . . . . . . . 2 . . . . . . . . . . . Average Slot Usage (%) 92 | . 83 100 96 100 93 85 95 92 92 100 99 96 99 98 100 94 93 93 96 88 93 87 88 88 86 82 70 Engine 3 | . 12 12 10 10 10 10 3 . 5 7 3 4 6 4 3 2 . . . . . . . . . . . Core 3 | . . . . . . . 3 7 1 . 3 1 . . 2 7 11 11 9 4 3 3 . . . . . Reactor 2 | . . . . . . . . . . . . . . . . . . . . 4 4 4 9 8 8 7 5 Treads 13 | . . . . . . . . . 8 28 28 24 24 24 25 17 16 16 17 13 13 9 9 8 8 7 6 Leg 6 | . 21 25 27 30 30 29 32 28 18 . . . . . . . . . . . . . . . . . . Device 20 | . . . 3 10 10 10 9 18 14 14 13 15 16 18 23 23 25 30 30 27 30 27 25 30 32 30 27 Storage 8 | . 12 12 10 10 10 10 8 7 7 7 7 6 6 6 6 8 11 11 10 9 9 9 9 8 8 5 4 Processor 6 | . 21 25 16 10 2 . 5 . 5 14 4 3 12 12 12 11 3 . 3 4 4 4 4 4 2 1 2 Hackware 3 | . . . . . . . . . 1 . 9 8 7 6 1 . . . . 2 4 6 11 8 5 7 5 Protection 3 | . . . . . . . 8 9 7 7 7 6 . . . . 2 1 5 4 4 3 . 3 3 4 2 Energy Gun 13 | . 14 21 28 30 20 25 13 . 4 3 7 17 19 14 8 21 20 21 20 18 18 17 17 11 4 3 1 Energy Cannon 5 | . . . . . . . 9 21 9 16 10 4 1 10 10 . 1 . . . . . . 4 11 11 10 Naked Turns . | . . . . . . . . . . . . . . . . . . . . . . . . . . . . Heaviest Build 141 | 14 15 18 26 26 34 37 47 52 67 70 63 63 58 73 70 73 97 93 99 97 101 103 99 115 133 137 141 Greatest Support 155 | 20 20 20 39 39 39 39 51 54 80 80 80 80 90 106 106 127 130 130 135 135 135 135 130 145 155 155 140 Greatest Overweight (x) 2 | . 1 . . . . . . 1 2 . . 1 . . . . . . 1 . . . . . . . 1 Average Overweight (x) . | . . . . . . . . . . . . . . . . . . . . . . . . . . . . Largest Inventory Capacity 15 | 10 10 10 10 10 15 15 15 15 15 15 15 15 15 15 15 15 15 15 15 15 15 15 15 15 15 15 15 Average Capacity 14 | 10 10 10 10 10 12 15 15 15 15 15 15 15 15 15 15 15 15 15 15 15 15 15 15 15 15 15 13 Most Carried 15 | 8 8 10 10 10 11 13 14 15 15 15 15 15 15 15 15 15 15 15 15 15 15 15 15 15 15 15 15 Average Carried 13 | 6 6 9 9 10 10 10 10 13 14 13 14 14 11 12 13 14 14 15 14 15 14 14 14 14 14 14 12 Final Capacity 15 | 10 10 10 10 10 15 15 15 15 15 15 15 15 15 15 15 15 15 15 15 15 15 15 15 15 15 15 5 Final Carried 15 | 6 8 10 10 10 11 9 14 15 15 13 15 15 11 13 14 15 15 15 15 15 14 15 15 14 15 15 3 Class Distribution -------------------- 34% | Scavenger-Skirmisher 13% | Hacker-Mutant 11% | Scavenger-Gunner 11% | Hacker-Skirmisher 10% | Scavenger-Mutant 10% | Scavenger-Tank 5% | Hacker-Gunner 3% | Hacker-Tank Dominant Class ---------------- Hacker-Mutant | -10/Materials Hacker-Mutant | -10/Mines Scavenger-Gunner | -9/Materials Hacker-Gunner | -9/Mines Hacker-Mutant | -9/Exiles Hacker-Skirmisher | -8/Mines Hacker-Skirmisher | -8/Materials Scavenger-Skirmisher | -7/Factory Scavenger-Mutant | -7/Garrison Scavenger-Gunner | -7/Factory Scavenger-Skirmisher | -7/Garrison Scavenger-Skirmisher | -6/Factory Scavenger-Skirmisher | -6/Garrison Scavenger-Skirmisher | -6/Factory Scavenger-Skirmisher | -6/Garrison Scavenger-Skirmisher | -5/Factory Scavenger-Gunner | -5/Garrison Scavenger-Gunner | -5/Factory Scavenger-Tank | -4/Factory Hacker-Tank | -3/Research Hacker-Gunner | -3/Garrison Hacker-Gunner | -3/Research Hacker-Skirmisher | -3/Garrison Scavenger-Tank | -2/Research Scavenger-Skirmisher | -2/Garrison Scavenger-Tank | -1/Access Scavenger-Gunner | -1/Command Resources | -11 -10 -10 -9 -9 -9 -8 -8 -7 -7 -7 -7 -6 -6 -6 -6 -5 -5 -5 -4 -3 -3 -3 -3 -2 -2 -1 -1 ----------- Run | Scr Mat Min Mat Min Exi Min Mat Fac Gar Fac Gar Fac Gar Fac Gar Fac Gar Fac Fac Res Gar Res Gar Res Gar Acc Com Matter Collected 4280 | 210 96 63 172 . 60 80 121 90 305 20 214 135 252 75 219 185 624 55 88 . 90 217 260 115 284 80 170 Remotely . | . . . . . . . . . . . . . . . . . . . . . . . . . . . . Salvage Created 22802 | . 96 42 488 . . 445 700 470 1341 129 844 939 740 236 1336 1654 1960 257 1069 35 982 2314 968 846 2252 1604 1055 Parts 860 | . 5 6 31 . . 19 30 26 45 6 33 32 16 10 41 44 77 17 56 6 50 81 32 39 60 63 35 Haulers Intercepted 4 | . . . 1 . . . 1 . . . . . . . . 1 . . . . . . . 1 . . . Recyclers Shooed 5 | . . . . . . . . 1 . . . . . . . 2 . . 1 . . 1 . . . . . Parts Field Recycled . | . . . . . . . . . . . . . . . . . . . . . . . . . . . . Retrieved Matter . | . . . . . . . . . . . . . . . . . . . . . . . . . . . . Parts Self-Destructed . | . . . . . . . . . . . . . . . . . . . . . . . . . . . . Prevented . | . . . . . . . . . . . . . . . . . . . . . . . . . . . . Kills | -11 -10 -10 -9 -9 -9 -8 -8 -7 -7 -7 -7 -6 -6 -6 -6 -5 -5 -5 -4 -3 -3 -3 -3 -2 -2 -1 -1 ------- Run | Scr Mat Min Mat Min Exi Min Mat Fac Gar Fac Gar Fac Gar Fac Gar Fac Gar Fac Fac Res Gar Res Gar Res Gar Acc Com Combat Hostiles Destroyed 366 | . 2 3 11 . . 4 12 11 26 2 23 17 17 5 25 19 31 3 13 . 20 28 13 14 32 19 16 Melee 1 | . . . . . . . . . . . . . . . 1 . . . . . . . . . . . . Guns 192 | . 2 3 11 . . 4 9 . 6 . 1 12 14 . 6 12 26 3 11 . 20 24 10 7 10 1 . Cannons 127 | . . . . . . . 3 10 16 2 21 2 1 5 16 . 1 . . . . . . 6 19 14 11 AOE 2 | . . . . . . . . . 2 . . . . . . . . . . . . . . . . . . Classes Destroyed 18 | . 1 1 4 . . 3 2 . . . 1 . 1 . 1 . 1 . . . 1 . . 1 . 1 . Worker 11 | . . . . . . 3 . . . . . . . . . 1 . . 1 . . 2 . 3 . 1 . Builder 15 | . . . 2 . . . 1 1 . . . . . . . 3 . . 3 2 . 3 . . . . . Tunneler 1 | . . . . . . . . . . . . . . . . . . . . . . . . 1 . . . Hauler 4 | . . . 1 . . . 1 . . . . . . . . 1 . . . . . . . 1 . . . Recycler 6 | . . . . . . 2 . 1 . . . . . . . 2 . . . . . 1 . . . . . Carrier 1 | . . . . . . . . . . . . . . . . . . . . . . . . . . 1 . Operator 7 | . . . . . . . 1 . . . . 1 . . . 1 . 1 2 . . . . . . . 1 Watcher 14 | . . . 1 . . . 1 1 . . . 1 . . . 1 1 1 2 . . 2 . 2 . 1 . Swarmer 80 | . . 3 5 . . . . 8 2 . 10 1 7 2 4 . 6 . . . 10 . 1 12 9 . . Saboteur 2 | . . . . . . . . . . . . . . . . . . . . . 2 . . . . . . Grunt 143 | . 2 . 4 . . 2 6 3 15 1 11 12 7 3 14 6 11 . 7 . 2 11 9 . 13 2 2 Brawler 9 | . . . . . . 2 . . 2 1 . . . . . . 2 . . . . . 1 . . 1 . Duelist 8 | . . . . . . . . . . . . . . . 1 . 2 . . . 3 1 . . . . 1 Sentry 39 | . . . 2 . . . 3 . 2 . . 2 1 . 2 2 4 1 1 . . 4 2 1 8 3 1 Specialist 2 | . . . . . . . . . . . 1 . . . . . . . . . . . . . 1 . . Hunter 40 | . . . . . . . 3 . 5 . 1 2 1 . 3 7 3 . 2 . . 6 . . . 5 2 Programmer 34 | . . . . . . . . . . . . . 1 . 1 4 . 2 3 . 2 6 . 1 . 8 6 Behemoth 6 | . . . . . . . . . . . . . . . . . 3 . . . 1 . . . 1 . 1 M Guard 1 | . . . . . . . . . . . . . . . . . . . . . . . . . . . 1 Combat Programmer 2 | . . . . . . . . . . . . . . . . . . . . . . . . . . . 2 Best Kill Streak 9 | . 2 2 6 . . 3 7 9 5 2 5 6 4 2 4 5 4 2 4 2 5 9 3 6 5 3 5 Combat Bots Only 6 | . 2 2 4 . . 2 6 5 5 2 5 6 4 2 4 3 4 2 3 . 5 6 3 5 5 3 5 Max Kills in Single Turn 2 | . 1 1 2 . . 2 1 2 2 1 1 1 2 1 1 2 2 1 1 1 1 2 2 2 2 2 1 Gunslinging 1 | . . . 1 . . 1 . . . . . . 1 . . 1 . . . . . . 1 . 1 . . Exploded 2 | . . . . . . . . . 2 . . . . . . . . . . . . . . . . . . Melee 1 | . . . . . . . . . . . . . . . 1 . . . . . . . . . . . . Uniques/NPCs Destroyed . | . . . . . . . . . . . . . . . . . . . . . . . . . . . . Combat | -11 -10 -10 -9 -9 -9 -8 -8 -7 -7 -7 -7 -6 -6 -6 -6 -5 -5 -5 -4 -3 -3 -3 -3 -2 -2 -1 -1 -------- Run | Scr Mat Min Mat Min Exi Min Mat Fac Gar Fac Gar Fac Gar Fac Gar Fac Gar Fac Fac Res Gar Res Gar Res Gar Acc Com Damage Taken 22249 | . 80 62 428 . . 31 904 266 1367 8 676 879 673 376 694 1029 1398 66 419 . 545 1237 524 622 1509 678 7778 Core 2935 | . 7 17 91 . . 9 140 10 180 . 58 20 66 57 63 89 72 . 8 . 91 108 35 14 186 62 1552 Absorbed by Shields 80 | . . . . . . . . . . . . . 17 . . . 38 . . . . . . . 25 . . Reduced by Siege Mode 469 | . . . . . . . . . . . . . . . . . 50 . . . . . . . . . 419 Redirected to Shielding 54 | . . . . . . . 26 11 17 . . . . . . . . . . . . . . . . . . Regen/Repaired (Parts) 361 | . . . . . . . . . . . . . . . . 361 . . . . . . . . . . . Core Remaining (%) 82 | 100 . 90 . . . 75 74 . . . 64 . . . 75 . . 83 99 . . . 82 . 86 . . Volleys Fired 937 | . 9 15 33 . . 15 35 18 93 2 48 37 40 8 42 52 92 7 37 6 34 55 31 28 69 33 98 Largest 4 | . 1 2 3 . . 3 3 3 3 3 3 4 4 4 4 4 4 4 4 4 4 4 4 4 4 4 4 Hottest 480 | . 40 80 150 . . 195 195 180 173 210 188 253 287 360 360 288 352 352 352 352 352 352 352 402 473 454 480 Shots Fired 2852 | . 9 25 96 . . 41 81 54 158 6 120 124 130 26 126 202 308 30 148 24 136 208 117 91 258 129 205 Gun 1934 | . 9 20 96 . . 41 60 . 65 . 30 99 117 . 47 202 277 30 148 24 136 206 115 61 112 30 9 Cannon 868 | . . . . . . . 21 54 93 6 89 24 11 26 78 . 11 . . . . . . 30 146 99 180 Launcher 43 | . . 5 . . . . . . . . 1 . 1 . 1 . 20 . . . . . . . . . 15 Special 7 | . . . . . . . . . . . . 1 1 . . . . . . . . 2 2 . . . 1 Kinetic . | . . . . . . . . . . . . . . . . . . . . . . . . . . . . Thermal 2711 | . 9 20 90 . . 26 81 54 92 2 119 123 128 26 125 202 288 30 148 24 136 206 115 91 258 129 189 Explosive 43 | . . 5 . . . . . . . . 1 . 1 . 1 . 20 . . . . . . . . . 15 Electromagnetic 91 | . . . 6 . . 15 . . 66 4 . . . . . . . . . . . . . . . . . Robot Hit Streak 50 | . 5 6 36 . . 24 50 21 30 21 41 32 29 8 41 47 30 9 17 17 18 41 48 20 29 40 19 Robot Miss Streak 4 | . 1 1 1 . . . 1 2 2 1 2 2 1 2 1 2 2 1 2 . 3 2 1 2 2 1 4 Penetration Max . | . . . . . . . . . . . . . . . . . . . . . . . . . . . . Secondary Targets 27 | . . . 3 . . 1 3 . . . . 2 3 . . 4 2 . 4 . 1 2 1 . 1 . . Max Gunslinging Chain 2 | . . . 2 . . 1 1 . . . . 1 1 . . 1 1 . 1 . 1 1 1 . 1 . . Shots Hit Robots 2111 | . 8 13 78 . 11 22 70 37 126 4 81 110 94 13 109 163 207 14 108 4 77 158 87 57 197 104 159 Core Hits 879 | . 5 3 26 . . 12 26 20 49 3 35 53 49 7 53 56 80 8 36 2 33 72 36 29 81 35 70 Critical Kills 12 | . . . . . . . . . . . . . . . 1 . 1 . . . . . . . 2 4 4 Critical Parts Destroyed . | . . . . . . . . . . . . . . . . . . . . . . . . . . . . Critical Strikes 84 | . . . 2 . . . 5 . 4 . 3 4 8 . 1 9 8 . 4 . 3 14 4 1 6 4 4 Burn 69 | . . . 2 . . . 5 . 1 . 3 4 8 . . 9 7 . 4 . 3 14 4 1 4 . . Meltdown 12 | . . . . . . . . . . . . . . . 1 . 1 . . . . . . . 2 4 4 Corrupt 3 | . . . . . . . . . 3 . . . . . . . . . . . . . . . . . . Melee Attacks 121 | . . . . . 11 3 . . 57 . 24 3 1 . 22 . . . . . . . . . . . . Impact . | . . . . . . . . . . . . . . . . . . . . . . . . . . . . Slashing . | . . . . . . . . . . . . . . . . . . . . . . . . . . . . Piercing 92 | . . . . . . . . . 49 . 21 . . . 22 . . . . . . . . . . . . Sneak Attacks 15 | . . . . . 11 3 . . 1 . . . . . . . . . . . . . . . . . . Combat Hostiles 1 | . . . . . . . . . 1 . . . . . . . . . . . . . . . . . . Follow-up Attacks . | . . . . . . . . . . . . . . . . . . . . . . . . . . . . Damage Inflicted 61357 | . 90 149 996 . . 381 1213 1006 3166 125 1860 2013 2005 416 2952 3432 5746 461 3694 129 2718 5673 2161 1973 6623 4513 7862 Guns 36527 | . 90 143 973 . . 331 864 . 981 . 353 1732 1887 . 870 3407 5434 461 3654 129 2718 5639 2161 1217 2468 759 256 Cannons 22198 | . . . . . . . 347 990 1773 125 1507 279 99 416 1827 . 312 . . . . . . 747 4155 3679 5942 Explosions 2154 | . . . . . . 43 . . 412 . . . . . . . . . 40 . . . . . . . 1659 Melee 255 | . . . . . . . . . . . . . . . 255 . . . . . . . . . . . . Ramming 223 | . . 6 23 . . 7 2 16 . . . 2 19 . . 25 . . . . . 34 . 9 . 75 5 Kinetic . | . . . . . . . . . . . . . . . . . . . . . . . . . . . . Thermal 57566 | . 90 143 845 . . 172 1211 990 1981 26 1860 2011 1986 416 2697 3407 5746 461 3654 129 2718 5639 2161 1964 6623 4438 6198 Explosive 1659 | . . . . . . . . . . . . . . . . . . . . . . . . . . . 1659 Electromagnetic 1654 | . . . 128 . . 202 . . 1185 99 . . . . . . . . 40 . . . . . . . . Impact . | . . . . . . . . . . . . . . . . . . . . . . . . . . . . Slashing . | . . . . . . . . . . . . . . . . . . . . . . . . . . . . Piercing 255 | . . . . . . . . . . . . . . . 255 . . . . . . . . . . . . Highest Corruption 17 | . . . . . . . . . . . . 1 3 3 3 2 2 2 . . 1 3 3 1 3 2 17 Average Corruption 2 | . . . . . . . . . . . . 1 2 3 3 1 2 2 . . 1 1 3 1 2 1 5 Corruption Purged . | . . . . . . . . . . . . . . . . . . . . . . . . . . . . Corruption Blocked . | . . . . . . . . . . . . . . . . . . . . . . . . . . . . Effects 220 | . . . . . . . . . . . . 5 27 7 22 1 35 10 . . 8 12 23 3 23 8 36 Message Errors 48 | . . . . . . . . . . . . 1 8 3 6 1 7 . . . 1 2 5 1 4 . 9 Matter Fused 51 | . . . . . . . . . . . . . 7 1 7 . 6 3 . . 1 4 7 2 4 1 8 Heat Flow Errors 33 | . . . . . . . . . . . . 2 4 1 2 . 2 1 . . 2 4 4 . 3 1 7 Energy Discharges 32 | . . . . . . . . . . . . 1 3 1 6 . 7 2 . . 1 1 2 . 6 1 1 Data Loss (minor) 20 | . . . . . . . . . . . . 1 2 . 1 . 3 1 . . . . 2 . 2 5 3 Data Loss (major) 12 | . . . . . . . . . . . . . 1 . . . 2 1 . . 1 . 1 . 2 . 4 Misfires 9 | . . . . . . . . . . . . . . . . . 3 2 . . 1 . 1 . 1 . 1 Alerts 6 | . . . . . . . . . . . . . . 1 . . 2 . . . . 1 1 . 1 . . Misdirections 3 | . . . . . . . . . . . . . . . . . . . . . . . . . . . 3 Weapon Failures 6 | . . . . . . . . . . . . . 2 . . . 3 . . . 1 . . . . . . Overload Shots . | . . . . . . . . . . . . . . . . . . . . . . . . . . . . Overflow Damage 379 | . . . . . . . . 4 9 . 8 2 . 8 17 . . . . . . . . 31 39 96 165 Projectiles 373 | . . . . . . . . . 9 . 8 2 . 8 17 . . . . . . . . 31 39 94 165 Explosions . | . . . . . . . . . . . . . . . . . . . . . . . . . . . . Melee 6 | . . . . . . . . 4 . . . . . . . . . . . . . . . . . 2 . Knockbacks 1 | . . . . . . . . . . . . . . . . . . . . . . . . . . 1 . Impact 1 | . . . . . . . . . . . . . . . . . . . . . . . . . . 1 . Kinetic . | . . . . . . . . . . . . . . . . . . . . . . . . . . . . Secondary . | . . . . . . . . . . . . . . . . . . . . . . . . . . . . Self-Inflicted Damage 46 | . . 17 . . . 22 . . . . . . . . . . . . 5 . . . . . . . 2 Shots 3 | . . 1 . . . 1 . . . . . . . . . . . . 1 . . . . . . . . Rammed 15 | . . . . . . . . . . . . 1 5 . . 1 . . . . . 3 . . . 3 2 Targets Rammed 37 | . . 1 13 . . 2 1 3 . . . 1 5 . . 2 . . . . . 3 . 1 . 3 2 Kicked 20 | . . 1 13 . . 2 1 3 . . . . . . . . . . . . . . . . . . . Crushed 2 | . . . . . . . . . . . . . . . . 1 . . . . . . . 1 . . . Highest Temperature 452 | . 69 90 339 . . 255 228 54 126 255 266 229 366 374 394 142 420 298 111 72 452 296 278 308 249 266 352 Average Temperature 81 | . 43 40 104 . . 65 53 21 39 131 89 33 108 153 90 25 117 105 43 36 74 71 49 127 86 91 161 Received Heat Transfer 4861 | . 75 . 165 . . 9 450 54 810 9 225 462 311 234 381 135 327 9 133 . 48 150 223 63 363 36 189 Effects 11 | . . . 2 . . . . . . . . . 1 . 1 . 4 . . . 2 . . . 1 . . Shutdowns 4 | . . . . . . . . . . . . . . . . . 2 . . . 2 . . . . . . Energy Bleed 6 | . . . 2 . . . . . . . . . 1 . . . 2 . . . . . . . 1 . . Damage (minor) 1 | . . . . . . . . . . . . . . . 1 . . . . . . . . . . . . Siege Activations 6 | . . . . . . . . . . . . . . . . . 2 . . . . . . . . . 4 Total Turns 124 | . . . . . . . . . . . . . . . . . 39 . . . . . . . . . 85 Longest Duration 55 | . . . . . . . . . . . . . . . . . 28 . . . . . . . . . 55 Robots Corrupted 2 | . . . . . . . . . 2 . . . . . . . . . . . . . . . . . . Combat Hostiles 2 | . . . . . . . . . 2 . . . . . . . . . . . . . . . . . . Parts Fried 10 | . . . . . . . . 2 7 . . . . . . . . . . . . 1 . . . . . Impact Corruptions 2 | . . . . . . . . 1 . . . . . . . . . . . . . . . . . 1 . Robots Melted 42 | . . . 1 . . . . . . . 1 3 2 . 2 7 4 . 2 . . 4 3 1 3 4 5 Combat Hostiles 41 | . . . . . . . . . . . 1 3 2 . 2 7 4 . 2 . . 4 3 1 3 4 5 Parts Melted 290 | . . 1 7 . . . 8 3 5 . 4 18 20 . 17 38 19 3 9 1 9 38 13 10 32 22 13 Heat Transferred 78871 | . 200 325 2117 . . 296 2997 1591 2979 37 3087 4443 4271 650 4624 6845 7926 481 4403 148 3071 7252 3534 2370 6694 3922 4608 Parts Sabotaged 7 | . . . . . . . . . . . . . 5 . . . . . . . 2 . . . . . . Parts Stolen . | . . . . . . . . . . . . . . . . . . . . . . . . . . . . Parts Stripped . | . . . . . . . . . . . . . . . . . . . . . . . . . . . . Power Chain Reactions 5 | . . . . . . 1 . . 4 . . . . . . . . . . . . . . . . . . Missiles Intercepted . | . . . . . . . . . . . . . . . . . . . . . . . . . . . . Alert | -11 -10 -10 -9 -9 -9 -8 -8 -7 -7 -7 -7 -6 -6 -6 -6 -5 -5 -5 -4 -3 -3 -3 -3 -2 -2 -1 -1 ------- Run | Scr Mat Min Mat Min Exi Min Mat Fac Gar Fac Gar Fac Gar Fac Gar Fac Gar Fac Fac Res Gar Res Gar Res Gar Acc Com Peak Influence 1182 | . 50 114 216 28 . 105 238 308 1080 472 1182 639 1086 531 1012 516 900 374 250 38 618 385 427 368 582 327 134 Initial 460 | . . 13 31 28 . . 7 34 39 421 254 460 267 423 286 394 . 351 . . 21 260 29 180 63 264 52 Average 390 | . 20 32 80 28 . 46 82 143 803 457 809 415 705 445 703 202 436 81 77 7 324 213 261 239 372 173 47 Maximum Alert Level 4 | . . . 1 . . . 1 1 3 2 4 2 3 2 3 2 3 1 1 . 2 1 2 1 2 1 . Low Security (%) 36 | 100 100 100 93 100 . 100 83 66 9 . . 4 . . . 56 20 88 80 100 17 35 37 45 20 61 100 Level 1 22 | . . . 6 . . . 16 33 2 . 19 36 12 . 11 19 37 11 19 . 44 64 50 54 23 38 . Level 2 19 | . . . . . . . . . 16 100 8 59 40 100 35 24 19 . . . 37 . 11 . 55 . . Level 3 20 | . . . . . . . . . 70 . 62 . 46 . 52 . 23 . . . . . . . . . . Level 4 . | . . . . . . . . . . . 9 . . . . . . . . . . . . . . . . Level 5 . | . . . . . . . . . . . . . . . . . . . . . . . . . . . . High Security . | . . . . . . . . . . . . . . . . . . . . . . . . . . . . Max Security . | . . . . . . . . . . . . . . . . . . . . . . . . . . . . Squads Dispatched 47 | . . . 2 . . . 2 1 . . . 8 . 2 . 7 . 3 4 . . 5 . 4 . 5 4 Investigation 7 | . . . . . . . . . . . . 1 . 1 . 2 . 1 . . . 2 . . . . . Extermination 14 | . . . . . . . . . . . . 1 . . . 2 . 1 2 . . 2 . 1 . 2 3 Reinforcement 18 | . . . 2 . . . 2 1 . . . 3 . . . 2 . 1 2 . . 1 . . . 3 1 Assault . | . . . . . . . . . . . . . . . . . . . . . . . . . . . . Garrison 8 | . . . . . . . . . . . . 3 . 1 . 1 . . . . . . . 3 . . . Intercept . | . . . . . . . . . . . . . . . . . . . . . . . . . . . . Searches Triggered . | . . . . . . . . . . . . . . . . . . . . . . . . . . . . Construction Impeded 3 | . . . . . . . . . . . . 1 . . . . . . 1 . . 1 . . . . . Haulers Reinforced 3 | . . . . . . . . 1 . . . . . . . 1 . . 1 . . . . . . . . Active Scanning Responses . | . . . . . . . . . . . . . . . . . . . . . . . . . . . . Cargo Convoy Interrupts . | . . . . . . . . . . . . . . . . . . . . . . . . . . . . Stealth | -11 -10 -10 -9 -9 -9 -8 -8 -7 -7 -7 -7 -6 -6 -6 -6 -5 -5 -5 -4 -3 -3 -3 -3 -2 -2 -1 -1 --------- Run | Scr Mat Min Mat Min Exi Min Mat Fac Gar Fac Gar Fac Gar Fac Gar Fac Gar Fac Fac Res Gar Res Gar Res Gar Acc Com Distress Signals 10 | . . . 1 . . . 1 1 . . . . . . . 1 . . 2 . . 1 . . . 2 1 Communications Jammed . | . . . . . . . . . . . . . . . . . . . . . . . . . . . . Distress Signals . | . . . . . . . . . . . . . . . . . . . . . . . . . . . . Times Spotted 520 | . 3 3 22 3 . 4 23 17 40 2 29 29 26 5 24 25 33 5 18 . 23 40 23 22 37 26 38 Peak Tracking Total 14 | . 2 2 6 2 . 2 12 5 8 1 5 6 4 4 5 4 4 2 3 . 5 6 7 8 6 6 14 Tactical Retreats 34 | . . 1 5 . . . . 2 4 . 2 1 1 . 1 2 4 . 1 . 1 . 2 . 5 1 1 Traps | -11 -10 -10 -9 -9 -9 -8 -8 -7 -7 -7 -7 -6 -6 -6 -6 -5 -5 -5 -4 -3 -3 -3 -3 -2 -2 -1 -1 ------- Run | Scr Mat Min Mat Min Exi Min Mat Fac Gar Fac Gar Fac Gar Fac Gar Fac Gar Fac Fac Res Gar Res Gar Res Gar Acc Com Traps Triggered 26 | . 4 . . . . . . 1 4 . 1 3 . 1 2 3 1 1 . . . . . 1 1 2 1 Indirectly . | . . . . . . . . . . . . . . . . . . . . . . . . . . . . Trap Hack Attempts 18 | . . . . . . . . . 2 . 13 3 . . . . . . . . . . . . . . . Triggered . | . . . . . . . . . . . . . . . . . . . . . . . . . . . . Disarmed 5 | . . . . . . . . . . . . . . . . 4 . . . . . 1 . . . . . Reprogrammed 7 | . . . . . . . . . . . 3 . . . . . . . . . . 4 . . . . . Reused 3 | . . . . . . . . . . . 2 . . . . . . . . . . . . . 1 . . Traps Extracted . | . . . . . . . . . . . . . . . . . . . . . . . . . . . . Installed 1 | . . . . . . . . . . . . . . . . . . . . . . . . . 1 . . Triggered 3 | . . . . . . . . . . . 2 . . . . . . . . . . . . . 1 . . Most Traps Carried 3 | . . 3 3 3 3 3 3 3 3 1 1 1 1 1 1 1 1 1 1 1 1 1 1 1 1 . . Machines | -11 -10 -10 -9 -9 -9 -8 -8 -7 -7 -7 -7 -6 -6 -6 -6 -5 -5 -5 -4 -3 -3 -3 -3 -2 -2 -1 -1 ---------- Run | Scr Mat Min Mat Min Exi Min Mat Fac Gar Fac Gar Fac Gar Fac Gar Fac Gar Fac Fac Res Gar Res Gar Res Gar Acc Com Machines Disabled 63 | . . . . . . 5 . . 4 . 7 1 6 1 6 . 7 3 6 . 7 . 5 1 3 . 1 Max in Single Turn 4 | . . . . . . 1 . . 1 . 2 . 1 1 1 . 2 2 4 . 2 . 1 1 1 . 1 Garrison Access 1 | . . . . . . . . . . . . . . . . . . . . . . . . . . 1 . Garrison Relay 31 | . . . . . . . . . 4 . 4 . 4 . 4 . 5 . . . 2 . 4 . 4 . . Phase Generator 5 | . . . . . . . . . . . 1 . 1 . 1 . 1 . . . 1 . . . . . . Machines Sabotaged . | . . . . . . . . . . . . . . . . . . . . . . . . . . . . Garrisons Compromised . | . . . . . . . . . . . . . . . . . . . . . . . . . . . . Overloaded Fab Kills . | . . . . . . . . . . . . . . . . . . . . . . . . . . . . Hacking | -11 -10 -10 -9 -9 -9 -8 -8 -7 -7 -7 -7 -6 -6 -6 -6 -5 -5 -5 -4 -3 -3 -3 -3 -2 -2 -1 -1 --------- Run | Scr Mat Min Mat Min Exi Min Mat Fac Gar Fac Gar Fac Gar Fac Gar Fac Gar Fac Fac Res Gar Res Gar Res Gar Acc Com Machines Accessed 60 | . 1 . 1 . . 1 4 3 . 1 . 7 . 3 . 10 . 2 2 4 . 7 . 3 . 8 3 Terminals 36 | . 1 . 1 . . 1 4 1 . . . 3 . 1 . 4 . 1 2 2 . 6 . 1 . 5 3 Fabricators 5 | . . . . . . . . . . . . 3 . 1 . 1 . . . . . . . . . . . Repair Stations 4 | . . . . . . . . . . . . . . . . 3 . . . . . . . . . 1 . Recycling Units 3 | . . . . . . . . 1 . . . . . . . . . . . . . . . 1 . 1 . Scanalyzers 3 | . . . . . . . . . . . . . . . . 1 . 1 . 1 . . . . . . . Garrison Access 9 | . . . . . . . . 1 . 1 . 1 . 1 . 1 . . . 1 . 1 . 1 . 1 . Total Hacks 144 | . 3 . 6 . . 7 9 4 . 1 . 12 . 4 . 27 . 5 10 12 . 20 . 5 . 13 6 Successful 78 | . 3 . 3 . . 2 5 3 . 1 . 5 . 1 . 20 . 3 3 7 . 10 . 3 . 7 2 Failed 66 | . . . 3 . . 5 4 1 . . . 7 . 3 . 7 . 2 7 5 . 10 . 2 . 6 4 Catastrophic 5 | . . . . . . . . . . . . . . 1 . 1 . . . . . 1 . . . 2 . Database Lockouts . | . . . . . . . . . . . . . . . . . . . . . . . . . . . . Manual 75 | . 2 . 5 . 1 7 7 2 . . . 7 . 3 . 12 . . 5 6 . 11 . 3 . 2 2 Terminals 106 | . 3 . 6 . . 7 9 2 . . . 7 . 1 . 14 . 3 10 8 . 19 . 2 . 9 6 Fabricators 8 | . . . . . . . . . . . . 4 . 2 . 2 . . . . . . . . . . . Repair Stations 8 | . . . . . . . . . . . . . . . . 6 . . . . . . . . . 2 . Recycling Units 4 | . . . . . . . . 1 . . . . . . . . . . . . . . . 2 . 1 . Scanalyzers 9 | . . . . . . . . . . . . . . . . 4 . 2 . 3 . . . . . . . Garrison Access 9 | . . . . . . . . 1 . 1 . 1 . 1 . 1 . . . 1 . 1 . 1 . 1 . Terminal Hacks 37 | . 2 . 3 . . 2 2 . . . . 2 . . . 6 . 3 3 3 . 5 . . . 4 2 Robot Analysis 3 | . 1 . . . . . . . . . . . . . . . . . 1 . . . . . . . 1 Prototype ID Bank 3 | . . . . . . . . . . . . 1 . . . 1 . . . 1 . . . . . . . Open Door 3 | . . . . . . . . . . . . . . . . . . . . . . . . . . 3 . Open DSF 1 | . . . . . . . . . . . . 1 . . . . . . . . . . . . . . . Level Access Points 3 | . . . . . . . 1 . . . . . . . . 1 . . . 1 . . . . . . . Branch Access Points 4 | . . . 1 . . . 1 . . . . . . . . 1 . . . . . . . . . 1 . Unreport Threat 13 | . 1 . 2 . . 2 . . . . . . . . . 1 . 3 2 . . 2 . . . . . Disarm Traps 3 | . . . . . . . . . . . . . . . . 2 . . . . . 1 . . . . . Reprogram Traps 1 | . . . . . . . . . . . . . . . . . . . . . . 1 . . . . . Recall Investigation 1 | . . . . . . . . . . . . . . . . . . . . . . 1 . . . . . Zone Layout 1 | . . . . . . . . . . . . . . . . . . . . 1 . . . . . . . Disengage Seal 1 | . . . . . . . . . . . . . . . . . . . . . . . . . . . 1 Fabricator Hacks 1 | . . . . . . . . . . . . 1 . . . . . . . . . . . . . . . Build 1 | . . . . . . . . . . . . 1 . . . . . . . . . . . . . . . Repair Station Hacks 7 | . . . . . . . . . . . . . . . . 6 . . . . . . . . . 1 . Scan Component 4 | . . . . . . . . . . . . . . . . 3 . . . . . . . . . 1 . Repair 3 | . . . . . . . . . . . . . . . . 3 . . . . . . . . . . . Recycling Unit Hacks 3 | . . . . . . . . 1 . . . . . . . . . . . . . . . 1 . 1 . Retrieve Components 3 | . . . . . . . . 1 . . . . . . . . . . . . . . . 1 . 1 . Scanalyzer 5 | . . . . . . . . . . . . . . . . 4 . . . 1 . . . . . . . Insert Component 3 | . . . . . . . . . . . . . . . . 2 . . . 1 . . . . . . . Analyze 2 | . . . . . . . . . . . . . . . . 2 . . . . . . . . . . . Garrison Access Hacks 9 | . . . . . . . . 1 . 1 . 1 . 1 . 1 . . . 1 . 1 . 1 . 1 . Unlock Access 8 | . . . . . . . . 1 . 1 . 1 . 1 . 1 . . . 1 . 1 . 1 . . . Seal Access 1 | . . . . . . . . . . . . . . . . . . . . . . . . . . 1 . Unauthorized Hacks 16 | . 1 . . . . . 3 1 . . . 1 . . . 3 . . . 2 . 4 . 1 . . . Terminals 14 | . 1 . . . . . 3 1 . . . . . . . 3 . . . 2 . 4 . . . . . Assimilate 1 | . . . . . . . 1 . . . . . . . . . . . . . . . . . . . . Botnet 12 | . 1 . . . . . 1 1 . . . . . . . 3 . . . 2 . 4 . . . . . Disrupt 1 | . . . . . . . 1 . . . . . . . . . . . . . . . . . . . . Fabricators 1 | . . . . . . . . . . . . 1 . . . . . . . . . . . . . . . Fabnet 1 | . . . . . . . . . . . . 1 . . . . . . . . . . . . . . . Repair Stations . | . . . . . . . . . . . . . . . . . . . . . . . . . . . . Recycling Units 1 | . . . . . . . . . . . . . . . . . . . . . . . . 1 . . . Recyclers 1 | . . . . . . . . . . . . . . . . . . . . . . . . 1 . . . Scanalyzers . | . . . . . . . . . . . . . . . . . . . . . . . . . . . . Garrison Access . | . . . . . . . . . . . . . . . . . . . . . . . . . . . . Data Cores Recovered 5 | . . . . . . . . . . . . 1 . . . 1 . . 2 . . . . . . . 1 Used 3 | . . . . . . . . . . . . 1 . . . 1 . . 1 . . . . . . . . Hacking Detections 46 | . 1 . . . . 1 3 1 . . . 5 . 3 . 6 . 2 2 4 . 6 . 3 . 6 3 Full Trace Events 5 | . . . . . . . . . . . . . . 1 . 2 . 1 . . . 1 . . . . . Feedback Events . | . . . . . . . . . . . . . . . . . . . . . . . . . . . . Feedback Blocked . | . . . . . . . . . . . . . . . . . . . . . . . . . . . . Robot Schematics Acquired . | . . . . . . . . . . . . . . . . . . . . . . . . . . . . Robots Built . | . . . . . . . . . . . . . . . . . . . . . . . . . . . . Authchips . | . . . . . . . . . . . . . . . . . . . . . . . . . . . . Time . | . . . . . . . . . . . . . . . . . . . . . . . . . . . . Total Robot Build Rating . | . . . . . . . . . . . . . . . . . . . . . . . . . . . . Part Schematics Acquired 1 | . . . . . . . . . . . . . . . . 1 . . . . . . . . . . . Parts Built 1 | . . . . . . . . . . . . 1 . . . . . . . . . . . . . . . Authchips . | . . . . . . . . . . . . . . . . . . . . . . . . . . . . Time 53 | . . . . . . . . . . . . 53 . . . . . . . . . . . . . . . Total Part Build Rating 6 | . . . . . . . . . . . . 6 . . . . . . . . . . . . . . . Parts Repaired 3 | . . . . . . . . . . . . . . . . 3 . . . . . . . . . . . Time 138 | . . . . . . . . . . . . . . . . 138 . . . . . . . . . . . Parts Recycled . | . . . . . . . . . . . . . . . . . . . . . . . . . . . . Recycled Matter . | . . . . . . . . . . . . . . . . . . . . . . . . . . . . Retrieved Matter . | . . . . . . . . . . . . . . . . . . . . . . . . . . . . Retrieved Components 7 | . . . . . . . . 3 . . . . . . . . . . . . . . . 3 . 1 . Parts Scanalyzed 2 | . . . . . . . . . . . . . . . . 1 . . . 1 . . . . . . . Part Schematics Acquired 1 | . . . . . . . . . . . . . . . . 1 . . . . . . . . . . . Parts Damaged . | . . . . . . . . . . . . . . . . . . . . . . . . . . . . Bothacking | -11 -10 -10 -9 -9 -9 -8 -8 -7 -7 -7 -7 -6 -6 -6 -6 -5 -5 -5 -4 -3 -3 -3 -3 -2 -2 -1 -1 ------------ Run | Scr Mat Min Mat Min Exi Min Mat Fac Gar Fac Gar Fac Gar Fac Gar Fac Gar Fac Fac Res Gar Res Gar Res Gar Acc Com Used RIF Installer 8 | . . . . . . . . . 1 . 1 . 1 . 1 . 1 . . . 1 . 1 . 1 . . Command Fork 1 | . . . . . . . . . . . . . . . . . 1 . . . . . . . . . . Threat Obfuscator 3 | . . . . . . . . . . . . . . . 1 . . . . . 1 . 1 . . . . Patrol Navigation 1 | . . . . . . . . . . . . . 1 . . . . . . . . . . . . . . Structural Interface 1 | . . . . . . . . . . . 1 . . . . . . . . . . . . . . . . Autooverride 1 | . . . . . . . . . . . . . . . . . . . . . . . . . 1 . . Robots Hacked 20 | . . . . . 4 2 . . 5 . 1 3 1 . . 1 . . . . . . 1 . . 2 . Non-combat 5 | . . . . . 3 2 . . . . . . . . . . . . . . . . . . . . . Combat 15 | . . . . . 1 . . . 5 . 1 3 1 . . 1 . . . . . . 1 . . 2 . Autooverrided 2 | . . . . . . . . . . . . . . . . . . . . . . . . . . 2 . Robot Hacks Applied 25 | . . . . . 11 2 . . 5 . 2 3 1 . . . . . . . . . 1 . . . . parse_system 14 | . . . . . 11 1 . . . . 1 . 1 . . . . . . . . . . . . . . no_distress 1 | . . . . . . 1 . . . . . . . . . . . . . . . . . . . . . disrupt_area 1 | . . . . . . . . . . . . 1 . . . . . . . . . . . . . . . formatsys_high 9 | . . . . . . . . . 5 . 1 2 . . . . . . . . . . 1 . . . . Relay Couplers Released 124 | . . . . . . . . . 17 . 16 . 18 . 16 . 16 . . . 8 . 18 . 15 . . Machine Destruction 124 | . . . . . . . . . 17 . 16 . 18 . 16 . 16 . . . 8 . 18 . 15 . . Attached 9 | . . . . . . . . . 2 . 2 . 2 . . . . . . . . . 1 . 2 . . Fabnet Peak Effective % 3 | . . . . . . . . . . . . . . . . 3 3 3 1 . . . . . . . . Autooverrided 1 | . . . . . . . . . . . . . . . . 1 . . . . . . . . . . . Robots Rewired 1 | . . . . . . . . . 1 . . . . . . . . . . . . . . . . . . Allies Hacked . | . . . . . . . . . . . . . . . . . . . . . . . . . . . . Hacks Repelled . | . . . . . . . . . . . . . . . . . . . . . . . . . . . . Allies | -11 -10 -10 -9 -9 -9 -8 -8 -7 -7 -7 -7 -6 -6 -6 -6 -5 -5 -5 -4 -3 -3 -3 -3 -2 -2 -1 -1 -------- Run | Scr Mat Min Mat Min Exi Min Mat Fac Gar Fac Gar Fac Gar Fac Gar Fac Gar Fac Fac Res Gar Res Gar Res Gar Acc Com Total Allies 20 | . . . . 3 . . . . 6 . 1 3 1 . . 1 . . . . . 2 1 . . 2 . Largest Group 3 | . . . . 3 2 2 . . 1 1 1 1 1 1 . 1 . . . . . 1 2 . . 2 . Highest-Rated Group 165 | . . . . 40 32 32 . . 32 32 32 85 85 85 . 29 . . . . . 116 165 . . 138 . Highest-Rated Ally 116 | . . . . 16 16 16 . . 32 32 32 85 85 85 . 29 . . . . . 116 116 . . 69 . Total Orders . | . . . . . . . . . . . . . . . . . . . . . . . . . . . . Ally Attacks 134 | . . . . 4 . 11 . . 16 . 11 20 17 1 . 6 . . . . . 17 24 . . 7 . Total Damage 6307 | . . . . 43 . 122 . . 498 . 393 798 826 85 . 93 . . . . . 1374 1740 . . 335 . Kills 37 | . . . . 1 . . . . 4 . 3 5 6 . . 1 . . . . . 5 11 . . 1 . Allies Corrupted . | . . . . . . . . . . . . . . . . . . . . . . . . . . . . Allies Melted 1 | . . . . . . . . . . . 1 . . . . . . . . . . . . . . . . Field Lobotomies 4 | . . . . . . . . . . . . 1 1 . . . . . . . . 2 . . . . . Intel | -11 -10 -10 -9 -9 -9 -8 -8 -7 -7 -7 -7 -6 -6 -6 -6 -5 -5 -5 -4 -3 -3 -3 -3 -2 -2 -1 -1 ------- Run | Scr Mat Min Mat Min Exi Min Mat Fac Gar Fac Gar Fac Gar Fac Gar Fac Gar Fac Fac Res Gar Res Gar Res Gar Acc Com Robot Analysis Total 3 | . 1 . . . . . . . . . . . . . . . . . 1 . . . . . . . 1 Derelict Logs Recovered 2 | . . 2 . . . . . . . . . . . . . . . . . . . . . . . . . Drone Launches . | . . . . . . . . . . . . . . . . . . . . . . . . . . . . Drone Recoveries . | . . . . . . . . . . . . . . . . . . . . . . . . . . . . Exploration | -11 -10 -10 -9 -9 -9 -8 -8 -7 -7 -7 -7 -6 -6 -6 -6 -5 -5 -5 -4 -3 -3 -3 -3 -2 -2 -1 -1 ------------- Run | Scr Mat Min Mat Min Exi Min Mat Fac Gar Fac Gar Fac Gar Fac Gar Fac Gar Fac Fac Res Gar Res Gar Res Gar Acc Com Turns Passed 27228 | 12 200 1003 610 129 721 378 612 523 2780 189 2194 984 1611 336 1298 1620 2480 437 829 383 945 1143 1431 549 1650 1045 1136 Spaces Moved 14685 | 8 134 794 350 96 576 234 386 362 1331 111 1185 476 858 176 644 663 1296 256 426 186 410 545 818 295 872 574 623 Core 235 | . . . . . . . . . . . . . . . . . . . . . . . . . . . 235 Treads 10571 | . . . . . . . . . 392 111 1185 476 858 176 644 663 1296 256 426 186 410 545 818 295 872 574 388 Legs 3879 | 8 134 794 350 96 576 234 386 362 939 . . . . . . . . . . . . . . . . . . Wheels . | . . . . . . . . . . . . . . . . . . . . . . . . . . . . Hover . | . . . . . . . . . . . . . . . . . . . . . . . . . . . . Flight . | . . . . . . . . . . . . . . . . . . . . . . . . . . . . Fastest Speed 50 | 120 120 120 120 120 120 120 110 120 120 160 160 160 160 160 160 162 160 160 155 155 155 155 157 145 145 152 50 Average Speed 151 | 120 122 120 120 120 120 120 115 120 169 160 160 160 160 160 161 162 160 160 156 155 155 162 157 153 153 154 137 Slowest Speed 260 | 120 190 120 120 120 120 120 120 190 260 160 160 240 160 160 162 163 163 160 235 155 155 165 157 157 157 165 260 Overloaded Moves . | . . . . . . . . . . . . . . . . . . . . . . . . . . . . Propulsion Burnouts . | . . . . . . . . . . . . . . . . . . . . . . . . . . . . Robots Hopped . | . . . . . . . . . . . . . . . . . . . . . . . . . . . . Cave-ins Triggered . | . . . . . . . . . . . . . . . . . . . . . . . . . . . . Exploration Rate (%) 43 | 3 27 100 34 38 72 33 37 10 84 3 99 11 99 5 99 19 99 7 13 7 65 18 98 10 99 14 23 Regions Visited 27 Branch Regions 5 Pre-discovered Areas . | . . . . . . . . . . . . . . . . . . . . . . . . . . . . Known Exits Taken 19 | 1 1 1 1 1 1 1 1 1 . 1 . 1 . 1 . 1 . 1 1 1 . 1 . 1 . 1 . Unknown Exits Taken . | . . . . . . . . . . . . . . . . . . . . . . . . . . . . Scrap Searched . | . . . . . . . . . . . . . . . . . . . . . . . . . . . . Spaces Dug 70 | . . 40 . . . . . . 13 . 7 . . . 2 . . 2 . 5 . 1 . . . . . Terrain Destroyed 753 | . . 62 . . . 6 1 . 29 1 92 . 85 8 82 . 86 9 18 8 138 22 . 8 27 11 60 Melee 22 | . . . . . . . . . 13 . 7 . . . 2 . . . . . . . . . . . . Projectile 156 | . . . . . . . 1 . . 1 . . . 8 . . 2 9 18 8 14 22 . 8 27 11 27 AOE 575 | . . 62 . . . 6 . . 16 . 85 . 85 . 80 . 84 . . . 124 . . . . . 33 Terrain Rammed . | . . . . . . . . . . . . . . . . . . . . . . . . . . . . Walls Destroyed . | . . . . . . . . . . . . . . . . . . . . . . . . . . . . Machines Disabled . | . . . . . . . . . . . . . . . . . . . . . . . . . . . . Actions | -11 -10 -10 -9 -9 -9 -8 -8 -7 -7 -7 -7 -6 -6 -6 -6 -5 -5 -5 -4 -3 -3 -3 -3 -2 -2 -1 -1 --------- Run | Scr Mat Min Mat Min Exi Min Mat Fac Gar Fac Gar Fac Gar Fac Gar Fac Gar Fac Fac Res Gar Res Gar Res Gar Acc Com Total 17807 | 12 157 819 468 110 602 301 479 406 1599 119 1342 606 1006 217 786 1088 1533 269 497 265 635 666 906 354 1079 679 807 Wait 1296 | . . . 39 15 . 25 28 6 52 . 40 59 78 11 44 335 77 3 18 71 184 21 25 1 78 49 37 Move 14651 | 7 133 793 349 95 575 233 385 362 1329 110 1183 475 856 175 642 662 1294 255 425 185 408 544 816 294 870 573 623 Hop . | . . . . . . . . . . . . . . . . . . . . . . . . . . . . Pick Up 88 | . 2 5 4 . 2 1 6 3 7 . 6 3 2 4 7 4 8 . . . 1 2 5 6 6 2 2 Fast Attach 173 | . 9 . 7 . 4 3 10 3 15 . 2 8 4 4 3 14 9 3 6 2 3 14 7 9 17 7 10 Attach 65 | 1 . . . . 1 6 1 2 6 2 3 2 9 2 3 2 2 . 2 . 1 2 2 2 . . 14 Detach 64 | 2 . . 1 . 3 8 4 2 7 . 2 2 4 3 2 3 2 . 3 . . 2 1 . 4 . 9 Swap 119 | . 2 2 8 . 1 . 3 3 10 2 13 6 6 3 8 4 20 . 1 . 2 7 6 1 8 2 1 Drop 226 | 2 2 3 14 . 5 5 6 5 11 3 8 7 1 7 13 10 27 1 5 1 2 16 13 12 26 10 11 Fire 937 | . 9 15 33 . . 15 35 18 93 2 48 37 40 8 42 52 92 7 37 6 34 55 31 28 69 33 98 Melee 121 | . . . . . 11 3 . . 57 . 24 3 1 . 22 . . . . . . . . . . . . Ram 1 | . . . . . . . . . . . . . . . . . . . . . . . . . . . 1 Kick 19 | . . 1 13 . . 2 1 2 . . . . . . . . . . . . . . . . . . . Crush 16 | . . . . . . . . . . . . 1 5 . . 2 . . . . . 3 . 1 . 3 1 Escape Stasis 10 | . . . . . . . . . 10 . . . . . . . . . . . . . . . . . . Rewire 2 | . . . . . . . . . . . . . . . . . 2 . . . . . . . . . . Trap 19 | . . . . . . . . . 2 . 13 3 . . . . . . . . . . . . 1 . . Miscellaneous . | . . . . . . . . . . . . . . . . . . . . . . . . . . . . Route ------- -11/Scrapyard -10/Materials -10/Mines (discovered 2 exits: *Mat x2) -9/Materials (discovered 3 exits: *Mat / *Min x2) -9/Mines (discovered 2 exits: *Mat / *Exi) -9/Exiles (discovered 2 exits: *Min x2) -8/Mines -8/Materials (discovered 3 exits: *Fac x3) -7/Factory -7/Garrison (discovered 3 exits: *Fac x3) -7/Factory -7/Garrison (discovered 3 exits: *Fac x3) -6/Factory -6/Garrison (discovered 3 exits: *Fac x3) -6/Factory -6/Garrison (discovered 3 exits: *Fac x3) -5/Factory (discovered 7 exits: Fac x4 / Upp x2 / Gar) -5/Garrison (discovered 3 exits: *Fac x3) -5/Factory -4/Factory -3/Research (discovered 4 exits: Res x3 / Gar) -3/Garrison -3/Research (discovered 2 exits: *Tes / Gar) -3/Garrison (discovered 3 exits: *Res x3) -2/Research (discovered 2 exits: *Qua / Gar) -2/Garrison (discovered 3 exits: *Acc x3) -1/Access -1/Command History --------- Turn | Location | Event 1 | -11/Scrapyard | Identified exit to Materials 4 | -11/Scrapyard | Discovered exit to Materials (range 3) 13 | -11/Scrapyard | Entered Materials 13 | -10/Materials | Evolved 1 slot: Utility x1 185 | -10/Materials | Identified exit to Mines 185 | -10/Materials | Discovered exit to Mines (range 14) 213 | -10/Materials | Entered Mines 273 | -10/Mines | Found a damaged Exp. Sensor Array with a note attached 296 | -10/Mines | Learned Materials garrison access intel 315 | -10/Mines | Found Prototype Device 318 | -10/Mines | Build established: Hacker-Mutant 359 | -10/Mines | Received a Rocket Launcher from a helpful Derelict 570 | -10/Mines | Identified exit to Materials 570 | -10/Mines | Discovered exit to Materials (range 9) 607 | -10/Mines | Learned Materials trap positions 692 | -10/Mines | Found a hidden stash of uninstalled traps 812 | -10/Mines | Discovered exit to Materials (range 10) 1216 | -10/Mines | Entered Materials 1216 | -9/Materials | Evolved 2 slots: Propulsion x1, Weapon x1 1217 | -9/Materials | Loaded intel: 13 trap records 1461 | -9/Materials | Identified exit to Mines 1704 | -9/Materials | Identified exit to Materials 1704 | -9/Materials | Discovered exit to Materials (range 12) 1826 | -9/Materials | Entered Mines 1835 | -9/Mines | Assembled infested the area 1840 | -9/Mines | Assisted by a Guerilla fighting off Assembled 1860 | -9/Mines | Discovered exit to Materials (range 7) 1909 | -9/Mines | Deemed a non-threat by the Exiles lab entrance 1909 | -9/Mines | Identified exit to Exiles 1909 | -9/Mines | Discovered exit to Exiles (range 5) 1924 | -9/Mines | Assisted by bots powering up and referring to "LRC-V3" 1955 | -9/Mines | Entered Exiles 1955 | -9/Exiles | Accompanied by 2 allies 1972 | -9/Exiles | Identified exit to Mines 1972 | -9/Exiles | Discovered exit to Mines (range 15) 1991 | -9/Exiles | Met 8R-AWN 1995 | -9/Exiles | Build established: Hacker-Gunner 2012 | -9/Exiles | Met EX-HEX 2090 | -9/Exiles | Met EX-BIN 2117 | -9/Exiles | Aligned with FarCom system 2118 | -9/Exiles | Given EX-Vault access code 2154 | -9/Exiles | Opened EX-Vault 2162 | -9/Exiles | Found Prototype Device 2162 | -9/Exiles | Identified Trap Reconfigurator 2169 | -9/Exiles | Found Prototype Energy Cannon 2169 | -9/Exiles | Identified Gui. Plasma Cannon 2179 | -9/Exiles | Found Prototype Special Weapon 2179 | -9/Exiles | Identified Field Lobotomy Kit 2238 | -9/Exiles | Warned to stay clear of 0b10 Research branches 2317 | -9/Exiles | Build established: Hacker-Mutant 2366 | -9/Exiles | Met EX-DEC 2664 | -9/Exiles | Discovered exit to Mines (range 10) 2676 | -9/Exiles | Left Exiles lab with Field Lobotomy Kit 2676 | -9/Exiles | Entered Mines 2676 | -8/Mines | Accompanied by 2 allies 3010 | -8/Mines | Discovered exit to Materials (range 9) 3054 | -8/Mines | Entered Materials 3054 | -8/Materials | Evolved 2 slots: Propulsion x1, Utility x1 3055 | -8/Materials | Loaded intel: 1 garrison access location 3367 | -8/Materials | Lost 3 parts (2n1w) 3597 | -8/Materials | Identified exit to Factory 3666 | -8/Materials | Entered Factory 3666 | -7/Factory | Evolved 2 slots: Utility x2 3742 | -7/Factory | Build established: Hacker-Skirmisher 4188 | -7/Factory | Identified exit to Garrison 4189 | -7/Factory | Entered Garrison 4234 | -7/Garrison | Triggered checkpoint 4291 | -7/Garrison | Build established: Scavenger-Tank 4324 | -7/Garrison | Garrison Relay disabled 4593 | -7/Garrison | Build established: Scavenger-Mutant 4610 | -7/Garrison | Triggered checkpoint 4670 | -7/Garrison | Triggered checkpoint 4719 | -7/Garrison | Garrison Relay disabled 4786 | -7/Garrison | Identified exit to Factory 4786 | -7/Garrison | Discovered exit to Factory (range 10) 4990 | -7/Garrison | Discovered exit to Factory (range 12) 5023 | -7/Garrison | Installed Relay Interface Framework 5094 | -7/Garrison | Triggered checkpoint 5165 | -7/Garrison | Garrison Relay disabled 5410 | -7/Garrison | Build established: Hacker-Mutant 5726 | -7/Garrison | Triggered checkpoint 5888 | -7/Garrison | Garrison Relay disabled 5980 | -7/Garrison | Discovered exit to Factory (range 13) 6184 | -7/Garrison | Lost 3 parts (2n1u) 6452 | -7/Garrison | Build established: Scavenger-Mutant 6969 | -7/Garrison | Entered Factory 6969 | -7/Factory | Accompanied by 1 ally 7157 | -7/Factory | Identified exit to Garrison 7158 | -7/Factory | Entered Garrison 7158 | -7/Garrison | Accompanied by 1 ally 7200 | -7/Garrison | Triggered checkpoint 7241 | -7/Garrison | Garrison Relay disabled 7538 | -7/Garrison | Triggered checkpoint 7660 | -7/Garrison | Triggered checkpoint 7768 | -7/Garrison | Triggered checkpoint 7773 | -7/Garrison | Garrison Relay disabled 7870 | -7/Garrison | Identified exit to Factory 7870 | -7/Garrison | Discovered exit to Factory (range 15) 7872 | -7/Garrison | Triggered checkpoint 7939 | -7/Garrison | Expanded RIF knowledge: Structural Interface 8151 | -7/Garrison | Build established: Scavenger-Skirmisher 8334 | -7/Garrison | Discovered exit to Factory (range 5) 8410 | -7/Garrison | Triggered checkpoint 8480 | -7/Garrison | Garrison Relay disabled 8704 | -7/Garrison | Triggered checkpoint 8789 | -7/Garrison | Garrison Relay disabled 8848 | -7/Garrison | Discovered exit to Factory (range 13) 9135 | -7/Garrison | Phase Generator disabled 9352 | -7/Garrison | Entered Factory 9352 | -6/Factory | Accompanied by 1 ally 9352 | -6/Factory | Evolved 2 slots: Utility x1, Weapon x1 9511 | -6/Factory | Fabricated Lrn. Proton Cannon (x1) 10026 | -6/Factory | Spotted B-75 Beast 10028 | -6/Factory | Assimilated B-75 Beast with FLK Orb 10039 | -6/Factory | Garrison activated, responded to threat 10335 | -6/Factory | Identified exit to Garrison 10336 | -6/Factory | Entered Garrison 10376 | -6/Garrison | Spotted B-75 Beast 10406 | -6/Garrison | Triggered checkpoint 10453 | -6/Garrison | Garrison Relay disabled 10692 | -6/Garrison | Assimilated B-75 Beast with FLK Orb 10720 | -6/Garrison | Triggered checkpoint 10758 | -6/Garrison | Triggered checkpoint 10834 | -6/Garrison | Identified exit to Factory 10834 | -6/Garrison | Discovered exit to Factory (range 11) 10862 | -6/Garrison | Expanded RIF knowledge: Patrol Navigation 10896 | -6/Garrison | Triggered checkpoint 10997 | -6/Garrison | Garrison Relay disabled 11194 | -6/Garrison | Triggered checkpoint 11263 | -6/Garrison | Garrison Relay disabled 11272 | -6/Garrison | Triggered checkpoint 11335 | -6/Garrison | Phase Generator disabled 11347 | -6/Garrison | Discovered exit to Factory (range 3) 11516 | -6/Garrison | Discovered exit to Factory (range 9) 11780 | -6/Garrison | Garrison Relay disabled 11947 | -6/Garrison | Entered Factory 11947 | -6/Factory | Accompanied by 1 ally 12191 | -6/Factory | Garrison activated, responded to threat 12281 | -6/Factory | Identified exit to Garrison 12283 | -6/Factory | Entered Garrison 12291 | -6/Garrison | Expanded RIF knowledge: Threat Obfuscation 12378 | -6/Garrison | Phase Generator disabled 12440 | -6/Garrison | Triggered checkpoint 12462 | -6/Garrison | Garrison Relay disabled 12640 | -6/Garrison | Triggered checkpoint 12657 | -6/Garrison | Build established: Hacker-Skirmisher 12720 | -6/Garrison | Triggered checkpoint 12842 | -6/Garrison | Identified exit to Factory 12842 | -6/Garrison | Discovered exit to Factory (range 10) 12892 | -6/Garrison | Triggered checkpoint 12931 | -6/Garrison | Garrison Relay disabled 13054 | -6/Garrison | Triggered checkpoint 13192 | -6/Garrison | Build established: Scavenger-Skirmisher 13221 | -6/Garrison | Discovered exit to Factory (range 14) 13304 | -6/Garrison | Triggered checkpoint 13357 | -6/Garrison | Garrison Relay disabled 13511 | -6/Garrison | Garrison Relay disabled 13518 | -6/Garrison | Triggered checkpoint 13563 | -6/Garrison | Discovered exit to Factory (range 10) 13581 | -6/Garrison | Entered Factory 13581 | -5/Factory | Evolved 2 slots: Power x1, Utility x1 13670 | -5/Factory | Found Powered Armor 13675 | -5/Factory | Identified exit to Upper Caves 13883 | -5/Factory | Repaired Med. Treads 13970 | -5/Factory | Repaired Imp. Medium Treads 14702 | -5/Factory | Identified exit to Factory 14895 | -5/Factory | Repaired Hvy. Laser 15167 | -5/Factory | Garrison activated, responded to threat 15199 | -5/Factory | Identified exit to Garrison 15201 | -5/Factory | Entered Garrison 15210 | -5/Garrison | Expanded RIF knowledge: Command Fork 15332 | -5/Garrison | Triggered checkpoint 15385 | -5/Garrison | Garrison Relay disabled 15400 | -5/Garrison | Triggered checkpoint 15493 | -5/Garrison | Spotted B-75 Beast 15542 | -5/Garrison | Build established: Hacker-Skirmisher 15569 | -5/Garrison | Destroyed B-75 Beast 15594 | -5/Garrison | Triggered checkpoint 15894 | -5/Garrison | Spotted B-75 Beast 15894 | -5/Garrison | Spotted B-75 Beast 15915 | -5/Garrison | Destroyed B-75 Beast 15952 | -5/Garrison | Build established: Scavenger-Skirmisher 15966 | -5/Garrison | Destroyed B-75 Beast 16162 | -5/Garrison | Identified exit to Factory 16162 | -5/Garrison | Discovered exit to Factory (range 7) 16238 | -5/Garrison | Triggered checkpoint 16238 | -5/Garrison | Garrison Relay disabled 16628 | -5/Garrison | Triggered checkpoint 16640 | -5/Garrison | Garrison Relay disabled 16866 | -5/Garrison | Triggered checkpoint 16960 | -5/Garrison | Triggered checkpoint 16973 | -5/Garrison | Build established: Scavenger-Gunner 17038 | -5/Garrison | Discovered exit to Factory (range 3) 17106 | -5/Garrison | Phase Generator disabled 17153 | -5/Garrison | Garrison Relay disabled 17196 | -5/Garrison | Triggered checkpoint 17276 | -5/Garrison | Triggered checkpoint 17317 | -5/Garrison | Garrison Relay disabled 17350 | -5/Garrison | Discovered exit to Factory (range 12) 17681 | -5/Garrison | Entered Factory 18002 | -5/Factory | Discovered exit to Factory (range 6) 18118 | -5/Factory | Entered another Factory area 18118 | -4/Factory | Evolved 2 slots: Utility x2 18544 | -4/Factory | Build established: Scavenger-Tank 18821 | -4/Factory | Identified exit to Research 18821 | -4/Factory | Discovered exit to Research (range 5) 18947 | -4/Factory | Entered Research 18947 | -3/Research | Evolved 2 slots: Utility x2 19208 | -3/Research | Identified exit to Research 19328 | -3/Research | Identified exit to Garrison 19330 | -3/Research | Entered Garrison 19338 | -3/Garrison | Expanded RIF knowledge: Threat Obfuscation 19360 | -3/Garrison | Phase Generator disabled 19397 | -3/Garrison | Build established: Hacker-Tank 19555 | -3/Garrison | Spotted B-86 Titan 19567 | -3/Garrison | Triggered checkpoint 19594 | -3/Garrison | Triggered checkpoint 19656 | -3/Garrison | Garrison Relay disabled 19798 | -3/Garrison | Destroyed B-86 Titan 19995 | -3/Garrison | Build established: Hacker-Gunner 20058 | -3/Garrison | Triggered checkpoint 20112 | -3/Garrison | Garrison Relay disabled 20185 | -3/Garrison | Identified exit to Research 20185 | -3/Garrison | Discovered exit to Research (range 9) 20275 | -3/Garrison | Entered Research 20410 | -3/Research | Identified exit to Testing 20410 | -3/Research | Discovered exit to Testing (range 19) 20631 | -3/Research | Spotted B-86 Titan 20633 | -3/Research | Assimilated B-86 Titan with FLK Orb 21062 | -3/Research | Build established: Hacker-Tank 21381 | -3/Research | Spotted B-86 Titan 21386 | -3/Research | Spotted B-86 Titan 21387 | -3/Research | Assimilated B-86 Titan with FLK Orb 21417 | -3/Research | Identified exit to Garrison 21418 | -3/Research | Entered Garrison 21418 | -3/Garrison | Accompanied by 1 ally 21426 | -3/Garrison | Expanded RIF knowledge: Threat Obfuscation 21506 | -3/Garrison | Build established: Hacker-Skirmisher 21536 | -3/Garrison | Triggered checkpoint 21571 | -3/Garrison | Garrison Relay disabled 21608 | -3/Garrison | Triggered checkpoint 21741 | -3/Garrison | Garrison Relay disabled 21762 | -3/Garrison | Discovered exit to Research (range 10) 21832 | -3/Garrison | Triggered checkpoint 22172 | -3/Garrison | Garrison Relay disabled 22255 | -3/Garrison | Triggered checkpoint 22266 | -3/Garrison | Discovered exit to Research (range 13) 22378 | -3/Garrison | Triggered checkpoint 22452 | -3/Garrison | Discovered exit to Research (range 11) 22527 | -3/Garrison | Found Unknown Launcher 22527 | -3/Garrison | Identified Fusion Bomb Launcher 22596 | -3/Garrison | Triggered checkpoint 22687 | -3/Garrison | Garrison Relay disabled 22772 | -3/Garrison | Triggered checkpoint 22808 | -3/Garrison | Build established: Scavenger-Tank 22849 | -3/Garrison | Entered Research 22849 | -2/Research | Evolved 2 slots: Utility x2 22974 | -2/Research | Garrison activated, responded to threat 23177 | -2/Research | Identified exit to Quarantine 23177 | -2/Research | Discovered exit to Quarantine (range 4) 23177 | -2/Research | Spotted B-90 Cyclops 23396 | -2/Research | Identified exit to Garrison 23398 | -2/Research | Entered Garrison 23441 | -2/Garrison | Spotted B-90 Cyclops 23474 | -2/Garrison | Triggered checkpoint 23549 | -2/Garrison | Garrison Relay disabled 23565 | -2/Garrison | Build established: Scavenger-Skirmisher 23733 | -2/Garrison | Destroyed B-90 Cyclops 23843 | -2/Garrison | Triggered checkpoint 24027 | -2/Garrison | Identified exit to Access 24027 | -2/Garrison | Discovered exit to Access (range 10) 24086 | -2/Garrison | Triggered checkpoint 24091 | -2/Garrison | Garrison Relay disabled 24382 | -2/Garrison | Triggered checkpoint 24466 | -2/Garrison | Garrison Relay disabled 24491 | -2/Garrison | Discovered exit to Access (range 9) 24522 | -2/Garrison | Expanded RIF knowledge: Autooverride 24666 | -2/Garrison | Triggered checkpoint 24772 | -2/Garrison | Triggered checkpoint 24772 | -2/Garrison | Garrison Relay disabled 24946 | -2/Garrison | Triggered checkpoint 25025 | -2/Garrison | Discovered exit to Access (range 11) 25048 | -2/Garrison | Entered Access 25048 | -1/Access | Evolved 2 slots: Utility x2 25172 | -1/Access | Identified exit to Command 25947 | -1/Access | Build established: Scavenger-Tank 26093 | -1/Access | Entered Command 26556 | -1/Command | Spotted B-99 Colossus 26599 | -1/Command | Build established: Scavenger-Gunner 26691 | -1/Command | Destroyed B-99 Colossus 26703 | -1/Command | Lost 6 parts (2p3u1w) 26989 | -1/Command | Spotted M Guard 26989 | -1/Command | Spotted M Guard 26989 | -1/Command | Spotted Combat Programmer 26995 | -1/Command | Spotted Combat Programmer 27016 | -1/Command | Destroyed Combat Programmer 27021 | -1/Command | System corruption reached 10% 27055 | -1/Command | Destroyed Combat Programmer 27096 | -1/Command | Core integrity fell below 50% 27096 | -1/Command | Destroyed M Guard 27096 | -1/Command | All MAIN.C guards destroyed 27126 | -1/Command | Lost 19 parts (1p4n9u5w) 27164 | -1/Command | Core integrity fell below 20% 27205 | -1/Command | Disengaged cave seal 27227 | -1/Command | Spotted Executioner 27228 | -1/Command | Spotted Alpha 7 27228 | -1/Command | Spotted Striker 27228 | -1/Command | Spotted Executioner 27228 | -1/Command | Spotted Executioner 27229 | -1/Command | Destroyed by Executioner with Helical Railgun Last Messages --------------- 27172_ RIF reveals location of phase wall. 27189_ UJ77|RCR=N4TCP%A 27199_ Connecting with Cave Seal Controls... >>Control(Seal) Accessing seal controls... Disengaging subsurface cave network seal C208. Warning: Hostile activity detected below. 27204_ K-01 Serf destroyed. 27205_ HV Slug penetrates P-80 Master. 27205_ HV Slug penetrates Wall. 27206_ P-80 Master destroyed. 27207_ Slug penetrates Wall. 27214_ XEY1O2QBHJ687LRO8OHEA 27223_ Slug penetrates Wall. 27224_ K-01 Serf collects debris. 27229_ Field Lobotomy Kit expended. 27229_ FLK Orb intercepted. 27229_ Penetrated by Slug. 27229_ Relay Coupler [Hunter] destroyed. 27229_ Adv. Weapon Cycler destroyed. Map ----- +----------------------------------------------------+ | ????# #??????????????????????????????????????? | | ????# #??????????????????????????????????????? | | ????# #??????????????????????????????????????? | | ????# #??????????????????????????????????????? | | ????# #??????????????????????????????????????? | | ????# #??????????????????????????????????????? | | ????# #????+##+#?????????????????????????????? | | ????# #???? #?????????????????????????????? | | ????# #???**! *#?????????????????????????????? | | ????#####+#???**! #?????????????????????????????? | | ######### #???** ??????????????????????????????? | | ## #??? ???????????????????????????????? | | = ## #??? ???????????????????????????????? | | ## #??? ????????????????????????????????? | | ## #??? ?????????????????????????????????? | | ## ####+###########???????????????????????? | | * / # #???????????????????????? | | # # #???????????????????????? | | = ###### # #???????????????????????? | | ############# # #???????????????????????? | | ?????# ####"##+###????????????BB?????????? | | ?????# #??????????????BB?????????? | | ?????# Y #??????7?K?E?E# ?????????? | | ?????# b #####???? ????????? | | ?????# ]] g + ????????? | | ?????# ]] @ ; ^ ????????? | | ?????# ] g ]! ; ????????? | | ?????# !! *%! + ????????? | | ?##### k #####?7 K E E ????????? | | ?# #?????? # # # # ?????????? | | ?# #?????????#????BB?????????? | | ?# ######## ### #??????????????BB?????????? | | ?# #??????# #?# #?????????????????????????? | | ?# #??????# #?#### #?????????????????????????? | | ?+ #??????# #????# #?????????????????????????? | | ?+ ########+###### #?????????????????????????? | | ?+ # "" ## #?????????????????????????? | | ?+ # """" ##*%!|#?????????????????????????? | | ?# # """" ##[##+#####?????????????????????? | | ?# # "" ##=# % #?????????????????????? | | ?# + ##h# T #?????????????????????? | | ?# # ##h+ " #?????????????????????? | | ?# # ## # " "" #?????????????????????? | | ?# # ## # "" #?????????????????????? | | ?# # ## # #?????????????????????? | | ?# # ## ########?????????????????????? | | ?# # ""T"" ## #????????????????????????????? | | ?# # """"" ## #????????????????????????????? | | ?# ###############"#####????????????????????????? | | ?# # #????????????????????????? | +----------------------------------------------------+ Best States ------------- Heat Dissipation 237 Energy Generation 45 Energy Capacity 1000 Matter Stores 300 Matter Capacity 300 Sight Range 20 Terrain Scan Density 10 ECM Strength 1 Base Temperature (-) 200 Armor Coverage 1200 Resistance: KI 35 Resistance: TH 65 Resistance: EX 35 Resistance: EM 35 Resistance: I 35 Resistance: S 35 Resistance: P 35 Utility Shielding 33 Weapon Cycling 25 Evasion (%) 55 Targeting Accuracy 8 Target Analysis 12 Recoil Reduction 4 Particle Charging 37 Offensive Hacking 20 Defensive Hacking 20 Relay Coupler Types 2 Relay Coupler Value 66 Item Schematics ----------------- Adv. Heat Sink | -5/Factory | Scanalyzed Robot Schematics ------------------ None Fabricated ------------ Lrn. Proton Cannon | x1 | -6/Factory | Preloaded Alien Tech Used ----------------- None Achievements -------------- None Challenges ------------ None Game ------ Seed AccelerationScanShield Manual? 0 Play Time 03:28:42 Cumulative 170.3 hours Start 2022.05.24 @ 22:55:43 End 2022.05.25 @ 02:52:46 Sessions 1 Manual Loads 0 Difficulty Explorer Special Mode None Game No. 53 Rogue 0 Adventurer 1 Explorer 52 Win Type - Total 11 Types 5/0/3/3/0/0/0/0/0 Lore% 79 Gallery% 82 Achievement% 67 Wizard Run 0 Options --------- ASCII 0 Keyboard 1 Movement Arrows Keybinds 0 Fullscreen 0 Font 16/Terminus Map View 76x50 Tactical HUD 1 Map Filters BRIGHTNESS(150) Filters NONE Steam 1 RUN: 7b74ac9e-7cd3-46b5-a085-fcc180d58c0b